[Event "*** Titled Tuesday Blitz"]
[Site "Chess.com"]
[Date "2021.02.16"]
[Round "7"]
[White "krzyzan94"]
[Black "markowskitomasz"]
[Result "0-1"]
[WhiteElo "2748"]
[BlackElo "2615"]
[TimeControl "180+1"]
[EndTime "11:19:06 PST"]
[Termination "markowskitomasz won by resignation"]

1. e4 {[%clk 0:03:00.9]} 1... c5 {[%clk 0:02:59.7]} 2. Nf3 {[%clk 0:03:01]} 2...
Nc6 {[%clk 0:02:54.5]} 3. d4 {[%clk 0:02:56.1]} 3... cxd4 {[%clk 0:02:55.4]} 4.
Nxd4 {[%clk 0:02:56.9]} 4... e5 {[%clk 0:02:55.6]} 5. Nb5 {[%clk 0:02:56.2]}
5... d6 {[%clk 0:02:55.4]} 6. c4 {[%clk 0:02:55.8]} 6... Be6 {[%clk 0:02:54.9]}
7. N5c3 {[%clk 0:02:53.6]} 7... Nf6 {[%clk 0:02:49]} 8. Bd3 {[%clk 0:02:52.5]}
8... Be7 {[%clk 0:02:48.7]} 9. O-O {[%clk 0:02:50.4]} 9... O-O {[%clk
0:02:48.7]} 10. Nd5 {[%clk 0:02:50.7]} 10... Nd7 {[%clk 0:02:17.4]} 11. Nbc3
{[%clk 0:02:31]} 11... Rc8 {[%clk 0:02:14]} 12. Be3 {[%clk 0:02:28]} 12... Bg5
{[%clk 0:02:11.3]} 13. Rc1 {[%clk 0:02:27.1]} 13... Bxe3 {[%clk 0:02:05.8]} 14.
fxe3 {[%clk 0:02:11]} 14... Ne7 {[%clk 0:02:02.5]} 15. b3 {[%clk 0:02:07.6]}
15... Bxd5 {[%clk 0:01:54.2]} 16. exd5 {[%clk 0:02:04.2]} 16... f5 {[%clk
0:01:53.2]} 17. Kh1 {[%clk 0:01:54]} 17... e4 {[%clk 0:01:25.5]} 18. Be2 {[%clk
0:01:51.4]} 18... a6 {[%clk 0:01:23.5]} 19. Qd2 {[%clk 0:01:41.8]} 19... Ne5
{[%clk 0:01:21.2]} 20. Rf2 {[%clk 0:01:31.5]} 20... Qd7 {[%clk 0:01:13.8]} 21.
Rcf1 {[%clk 0:01:31.2]} 21... g6 {[%clk 0:01:13]} 22. a4 {[%clk 0:01:25.6]}
22... h5 {[%clk 0:01:09.8]} 23. Qd4 {[%clk 0:01:20.8]} 23... Qc7 {[%clk
0:01:03.1]} 24. Qd1 {[%clk 0:01:04.8]} 24... Kg7 {[%clk 0:00:43.9]} 25. Qd2
{[%clk 0:00:55.5]} 25... Ng8 {[%clk 0:00:41.7]} 26. Rc1 {[%clk 0:00:50.3]} 26...
Nf6 {[%clk 0:00:40.7]} 27. Nd1 {[%clk 0:00:38.1]} 27... Qb6 {[%clk 0:00:30.6]}
28. b4 {[%clk 0:00:30.2]} 28... a5 {[%clk 0:00:25.5]} 29. c5 {[%clk 0:00:15.3]}
29... Qxb4 {[%clk 0:00:24.6]} 30. Qxb4 {[%clk 0:00:06.6]} 30... axb4 {[%clk
0:00:25.5]} 31. c6 {[%clk 0:00:04.8]} 31... bxc6 {[%clk 0:00:24.5]} 32. Ba6
{[%clk 0:00:03.7]} 32... Rc7 {[%clk 0:00:19.7]} 33. Rb2 {[%clk 0:00:02.1]} 33...
Ra8 {[%clk 0:00:15.9]} 34. Bf1 {[%clk 0:00:01.4]} 34... Rxa4 {[%clk 0:00:13]}
35. dxc6 {[%clk 0:00:01.9]} 35... Rxc6 {[%clk 0:00:11]} 36. Rxc6 {[%clk
0:00:02.1]} 36... Nxc6 {[%clk 0:00:11.9]} 37. Bb5 {[%clk 0:00:02.6]} 37... Ra1
{[%clk 0:00:12]} 38. Rd2 {[%clk 0:00:03.2]} 38... Ne5 {[%clk 0:00:10.9]} 39.
Rxd6 {[%clk 0:00:02]} 39... Nd3 {[%clk 0:00:10.9]} 40. h3 {[%clk 0:00:01.2]}
40... Rxd1+ {[%clk 0:00:10.6]} 41. Kh2 {[%clk 0:00:01.9]} 41... Rc1 {[%clk
0:00:10.4]} 42. Bxd3 {[%clk 0:00:01.7]} 42... exd3 {[%clk 0:00:11.3]} 43. Rxd3
{[%clk 0:00:02.4]} 43... Rc3 {[%clk 0:00:10.5]} 44. Rd4 {[%clk 0:00:02]} 44...
b3 {[%clk 0:00:10.7]} 45. Rb4 {[%clk 0:00:02.6]} 45... Ne4 {[%clk 0:00:10.4]}
46. h4 {[%clk 0:00:02.6]} 46... Rxe3 {[%clk 0:00:10.4]} 0-1

[Event "*** Titled Tuesday Blitz"]
[Site "Chess.com"]
[Date "2021.02.16"]
[Round "7"]
[White "Grandelicious"]
[Black "Markov_Mikhail"]
[Result "0-1"]
[WhiteElo "2877"]
[BlackElo "2718"]
[TimeControl "180+1"]
[EndTime "11:19:07 PST"]
[Termination "Markov_Mikhail won by resignation"]

1. Nf3 {[%clk 0:03:00.9]} 1... Nf6 {[%clk 0:02:57.7]} 2. g3 {[%clk 0:03:00.1]}
2... e6 {[%clk 0:02:58]} 3. Bg2 {[%clk 0:03:00.2]} 3... d5 {[%clk 0:02:58.9]} 4.
O-O {[%clk 0:03:00.8]} 4... Be7 {[%clk 0:02:59.5]} 5. c4 {[%clk 0:03:00.9]} 5...
O-O {[%clk 0:03:00.4]} 6. b3 {[%clk 0:03:00.9]} 6... c5 {[%clk 0:03:00.6]} 7.
cxd5 {[%clk 0:02:56.9]} 7... exd5 {[%clk 0:03:00.2]} 8. d4 {[%clk 0:02:57.1]}
8... Nbd7 {[%clk 0:03:00.3]} 9. Nc3 {[%clk 0:02:56]} 9... b6 {[%clk 0:03:00.4]}
10. dxc5 {[%clk 0:02:55.3]} 10... Nxc5 {[%clk 0:03:00.2]} 11. Nd4 {[%clk
0:02:54.6]} 11... Bb7 {[%clk 0:03:00.2]} 12. Nf5 {[%clk 0:02:52.4]} 12... Nce4
{[%clk 0:02:59.8]} 13. Bb2 {[%clk 0:02:50.3]} 13... Re8 {[%clk 0:02:24.6]} 14.
Rc1 {[%clk 0:02:31.5]} 14... Bc5 {[%clk 0:02:24.2]} 15. e3 {[%clk 0:02:13.3]}
15... a5 {[%clk 0:02:05.2]} 16. Nxe4 {[%clk 0:01:45.4]} 16... dxe4 {[%clk
0:02:03.6]} 17. Qxd8 {[%clk 0:01:43.7]} 17... Raxd8 {[%clk 0:01:59.8]} 18. Rfd1
{[%clk 0:01:43.2]} 18... Kf8 {[%clk 0:01:25.3]} 19. h3 {[%clk 0:01:30]} 19...
Rxd1+ {[%clk 0:00:41.5]} 20. Rxd1 {[%clk 0:01:30.9]} 20... Bc6 {[%clk 0:00:42]}
21. g4 {[%clk 0:01:27.6]} 21... a4 {[%clk 0:00:29.8]} 22. Bf1 {[%clk 0:01:25.1]}
22... axb3 {[%clk 0:00:28.4]} 23. axb3 {[%clk 0:01:26]} 23... Ra8 {[%clk
0:00:19.6]} 24. Bxf6 {[%clk 0:01:24.4]} 24... gxf6 {[%clk 0:00:19.5]} 25. Bc4
{[%clk 0:01:25.3]} 25... Ke8 {[%clk 0:00:15]} 26. Nh6 {[%clk 0:01:19.7]} 26...
Ra7 {[%clk 0:00:14.6]} 27. Ng8 {[%clk 0:01:03.4]} 27... Be7 {[%clk 0:00:12.1]}
28. Nxf6+ {[%clk 0:01:01.7]} 28... Bxf6 {[%clk 0:00:10.9]} 29. Rd6 {[%clk
0:01:02.4]} 29... Ra1+ {[%clk 0:00:08.3]} 30. Kg2 {[%clk 0:01:02.6]} 30... Bh4
{[%clk 0:00:09.1]} 31. Rxc6 {[%clk 0:00:56.8]} 31... Ra2 {[%clk 0:00:09.5]} 32.
Rc8+ {[%clk 0:00:53.8]} 32... Kd7 {[%clk 0:00:07.6]} 33. Rf8 {[%clk 0:00:54.1]}
33... Rxf2+ {[%clk 0:00:07.5]} 34. Kg1 {[%clk 0:00:54.3]} 34... Ke7 {[%clk
0:00:08.4]} 35. Rh8 {[%clk 0:00:53.8]} 35... Rf3 {[%clk 0:00:08.6]} 36. Rxh7
{[%clk 0:00:54.1]} 36... Bf2+ {[%clk 0:00:08.9]} 37. Kf1 {[%clk 0:00:50.6]}
37... Bxe3+ {[%clk 0:00:09.8]} 38. Ke2 {[%clk 0:00:51.2]} 38... Bd4 {[%clk
0:00:09.4]} 39. Bd5 {[%clk 0:00:50.5]} 39... Rf2+ {[%clk 0:00:09.9]} 40. Ke1
{[%clk 0:00:50]} 40... e3 {[%clk 0:00:10.8]} 41. Bc4 {[%clk 0:00:46.2]} 41...
Bc3+ {[%clk 0:00:10.9]} 42. Kd1 {[%clk 0:00:46.8]} 42... Kd6 {[%clk 0:00:11.2]}
43. Rh5 {[%clk 0:00:43.4]} 43... Rd2+ {[%clk 0:00:07.1]} 44. Kc1 {[%clk
0:00:43.3]} 44... e2 {[%clk 0:00:07.5]} 45. Bxe2 {[%clk 0:00:43.3]} 45... Rxe2
{[%clk 0:00:08.4]} 46. Rf5 {[%clk 0:00:43.7]} 46... f6 {[%clk 0:00:08.5]} 47. h4
{[%clk 0:00:42.9]} 47... Rh2 {[%clk 0:00:08.5]} 48. g5 {[%clk 0:00:43]} 48...
fxg5 {[%clk 0:00:07.9]} 49. hxg5 {[%clk 0:00:43.9]} 49... Be5 {[%clk 0:00:08.4]}
50. Rf8 {[%clk 0:00:37.1]} 50... Rg2 {[%clk 0:00:07.8]} 51. Rg8 {[%clk
0:00:36.9]} 51... Kd5 {[%clk 0:00:07.7]} 52. g6 {[%clk 0:00:36]} 52... Bd4
{[%clk 0:00:06.7]} 53. Kd1 {[%clk 0:00:33.2]} 53... Ke4 {[%clk 0:00:07.1]} 54.
g7 {[%clk 0:00:30.1]} 54... Rxg7 {[%clk 0:00:06.3]} 55. Re8+ {[%clk 0:00:30.9]}
55... Kd3 {[%clk 0:00:06.6]} 0-1

[Event "*** Titled Tuesday Blitz"]
[Site "Chess.com"]
[Date "2021.02.16"]
[Round "7"]
[White "Fandorine"]
[Black "AndrewMaco"]
[Result "1-0"]
[WhiteElo "2853"]
[BlackElo "2669"]
[TimeControl "180+1"]
[EndTime "11:19:07 PST"]
[Termination "Fandorine won by resignation"]

1. c4 {[%clk 0:03:00.9]} 1... e5 {[%clk 0:02:56.6]} 2. g3 {[%clk 0:02:58.9]}
2... Nf6 {[%clk 0:02:55.7]} 3. Bg2 {[%clk 0:02:58.3]} 3... h6 {[%clk 0:02:56.3]}
4. Nc3 {[%clk 0:02:56.9]} 4... Bb4 {[%clk 0:02:55.2]} 5. Qc2 {[%clk 0:02:56.9]}
5... O-O {[%clk 0:02:54.9]} 6. a3 {[%clk 0:02:56.4]} 6... Bxc3 {[%clk
0:02:52.3]} 7. Qxc3 {[%clk 0:02:57.3]} 7... Re8 {[%clk 0:02:52.5]} 8. d3 {[%clk
0:02:55]} 8... c5 {[%clk 0:02:49]} 9. Nf3 {[%clk 0:02:52.2]} 9... Nc6 {[%clk
0:02:47.1]} 10. O-O {[%clk 0:02:52.1]} 10... Rb8 {[%clk 0:02:39.8]} 11. b4
{[%clk 0:02:50.3]} 11... b6 {[%clk 0:02:37.2]} 12. b5 {[%clk 0:02:47.8]} 12...
Nd4 {[%clk 0:02:37.3]} 13. Ra2 {[%clk 0:01:05.9]} 13... Bb7 {[%clk 0:02:32.6]}
14. e4 {[%clk 0:01:04]} 14... d6 {[%clk 0:02:20.1]} 15. a4 {[%clk 0:01:03.7]}
15... a6 {[%clk 0:02:19.2]} 16. Nxd4 {[%clk 0:00:58.3]} 16... exd4 {[%clk
0:02:11.7]} 17. Qc2 {[%clk 0:00:56.3]} 17... Qc7 {[%clk 0:02:07.2]} 18. h3
{[%clk 0:00:52.7]} 18... Ra8 {[%clk 0:02:06.4]} 19. g4 {[%clk 0:00:49.5]} 19...
Nd7 {[%clk 0:02:01.4]} 20. Bf4 {[%clk 0:00:48.4]} 20... Ra7 {[%clk 0:01:57.2]}
21. Bg3 {[%clk 0:00:48.1]} 21... Rea8 {[%clk 0:01:56.8]} 22. Rfa1 {[%clk
0:00:48.2]} 22... axb5 {[%clk 0:01:35.5]} 23. axb5 {[%clk 0:00:49.1]} 23... Rxa2
{[%clk 0:01:35.9]} 24. Rxa2 {[%clk 0:00:49.7]} 24... Rxa2 {[%clk 0:01:36.7]} 25.
Qxa2 {[%clk 0:00:50.6]} 25... g5 {[%clk 0:01:37.4]} 26. f4 {[%clk 0:00:42.7]}
26... Qb8 {[%clk 0:01:26.1]} 27. fxg5 {[%clk 0:00:36.5]} 27... hxg5 {[%clk
0:01:25.6]} 28. Qd2 {[%clk 0:00:36.7]} 28... f6 {[%clk 0:01:23.4]} 29. h4 {[%clk
0:00:37.1]} 29... gxh4 {[%clk 0:01:15.2]} 30. Bxh4 {[%clk 0:00:38]} 30... Qf8
{[%clk 0:01:14.9]} 31. Qf4 {[%clk 0:00:25]} 31... Qe7 {[%clk 0:00:57.5]} 32. Bf1
{[%clk 0:00:14.1]} 32... Kg7 {[%clk 0:00:55]} 33. Be2 {[%clk 0:00:14.1]} 33...
Ne5 {[%clk 0:00:52.4]} 34. g5 {[%clk 0:00:14.5]} 34... fxg5 {[%clk 0:00:43.9]}
35. Bxg5 {[%clk 0:00:15.4]} 35... Qf7 {[%clk 0:00:40.9]} 36. Qxf7+ {[%clk
0:00:14.3]} 36... Kxf7 {[%clk 0:00:37.4]} 37. Bd8 {[%clk 0:00:14.7]} 37... Nd7
{[%clk 0:00:27.9]} 38. Kf2 {[%clk 0:00:15]} 38... Ke8 {[%clk 0:00:25]} 39. Bc7
{[%clk 0:00:15.5]} 39... Ke7 {[%clk 0:00:22.6]} 40. Kg3 {[%clk 0:00:16]} 40...
Ke8 {[%clk 0:00:15.9]} 41. Bxd6 {[%clk 0:00:15.7]} 41... Kf7 {[%clk 0:00:12.7]}
42. Bg4 {[%clk 0:00:14.6]} 42... Ke8 {[%clk 0:00:10.4]} 43. Kf4 {[%clk
0:00:14.3]} 43... Bc8 {[%clk 0:00:09.5]} 44. Bc7 {[%clk 0:00:13.7]} 44... Ke7
{[%clk 0:00:03.4]} 45. Bf5 {[%clk 0:00:13.9]} 45... Bb7 {[%clk 0:00:02.8]} 46.
Bxd7 {[%clk 0:00:13.5]} 46... Kxd7 {[%clk 0:00:03.7]} 47. Bxb6 {[%clk 0:00:14]}
47... Kd6 {[%clk 0:00:04.6]} 48. e5+ {[%clk 0:00:14.1]} 48... Ke6 {[%clk
0:00:04.5]} 49. Bxc5 {[%clk 0:00:14.8]} 1-0

[Event "*** Titled Tuesday Blitz"]
[Site "Chess.com"]
[Date "2021.02.16"]
[Round "7"]
[White "monalize"]
[Black "Ginger_GM"]
[Result "0-1"]
[WhiteElo "2385"]
[BlackElo "2642"]
[TimeControl "180+1"]
[EndTime "11:19:07 PST"]
[Termination "Ginger_GM won by resignation"]

1. e4 {[%clk 0:03:00.9]} 1... c5 {[%clk 0:02:57.3]} 2. Nf3 {[%clk 0:03:00.1]}
2... d6 {[%clk 0:02:56.7]} 3. d4 {[%clk 0:02:59.9]} 3... cxd4 {[%clk 0:02:56.5]}
4. Qxd4 {[%clk 0:02:59.7]} 4... Nc6 {[%clk 0:02:51.4]} 5. Qe3 {[%clk 0:02:59.2]}
5... Bg4 {[%clk 0:02:48.3]} 6. Be2 {[%clk 0:02:56.5]} 6... g6 {[%clk 0:02:46.6]}
7. O-O {[%clk 0:02:55.9]} 7... Bg7 {[%clk 0:02:45.4]} 8. Rd1 {[%clk 0:02:55.5]}
8... Qa5 {[%clk 0:02:27.4]} 9. c4 {[%clk 0:02:44]} 9... Nf6 {[%clk 0:02:23.4]}
10. Nc3 {[%clk 0:02:41.5]} 10... O-O {[%clk 0:02:22.5]} 11. Rb1 {[%clk
0:02:32.8]} 11... Rac8 {[%clk 0:02:19.9]} 12. a3 {[%clk 0:02:28.7]} 12... Qc5
{[%clk 0:02:16]} 13. b4 {[%clk 0:02:21.6]} 13... Qxe3 {[%clk 0:02:13.7]} 14.
Bxe3 {[%clk 0:02:21.9]} 14... Bxf3 {[%clk 0:02:14.3]} 15. gxf3 {[%clk
0:02:12.8]} 15... Ne5 {[%clk 0:02:11.8]} 16. Nd5 {[%clk 0:02:11.8]} 16... Nxd5
{[%clk 0:02:08.8]} 17. cxd5 {[%clk 0:02:11.1]} 17... Nc4 {[%clk 0:01:56.9]} 18.
Bxa7 {[%clk 0:01:35.2]} 18... Nxa3 {[%clk 0:01:53.4]} 19. Rbc1 {[%clk
0:01:34.8]} 19... Bb2 {[%clk 0:01:39.8]} 20. Rxc8 {[%clk 0:01:31.1]} 20... Rxc8
{[%clk 0:01:40.7]} 21. Be3 {[%clk 0:01:20.1]} 21... Nc2 {[%clk 0:01:34.1]} 22.
Bd2 {[%clk 0:00:48.8]} 22... Bc3 {[%clk 0:01:05.2]} 23. Bg5 {[%clk 0:00:46.9]}
23... f6 {[%clk 0:01:00.9]} 24. Bd2 {[%clk 0:00:46.3]} 24... Bxb4 {[%clk
0:00:31.8]} 25. Bxb4 {[%clk 0:00:45.3]} 25... Nxb4 {[%clk 0:00:32.1]} 26. Rb1
{[%clk 0:00:45.5]} 26... Nc2 {[%clk 0:00:29.6]} 27. Rxb7 {[%clk 0:00:44.8]}
27... Nd4 {[%clk 0:00:29.5]} 28. Bb5 {[%clk 0:00:39.9]} 28... Rc1+ {[%clk
0:00:25]} 29. Kg2 {[%clk 0:00:39.6]} 29... Kf7 {[%clk 0:00:25.5]} 30. Bd7 {[%clk
0:00:38.3]} 30... g5 {[%clk 0:00:23]} 31. Bg4 {[%clk 0:00:36.6]} 31... Ne2
{[%clk 0:00:19.2]} 32. Be6+ {[%clk 0:00:34.5]} 32... Kf8 {[%clk 0:00:17.2]} 33.
Rb8+ {[%clk 0:00:26.9]} 33... Kg7 {[%clk 0:00:17.4]} 34. f4 {[%clk 0:00:24]}
34... Nxf4+ {[%clk 0:00:17]} 35. Kf3 {[%clk 0:00:24]} 35... Rc3+ {[%clk
0:00:16.6]} 36. Kg4 {[%clk 0:00:23.7]} 36... Ng6 {[%clk 0:00:10.4]} 37. Bd7
{[%clk 0:00:15.7]} 37... Ne5+ {[%clk 0:00:09.5]} 38. Kf5 {[%clk 0:00:15.8]}
38... Rf3+ {[%clk 0:00:07.9]} 39. Ke6 {[%clk 0:00:15.8]} 39... Ng6 {[%clk
0:00:08.3]} 40. Re8 {[%clk 0:00:13.5]} 40... Rxf2 {[%clk 0:00:08.5]} 41. Bb5
{[%clk 0:00:12.7]} 41... Rxh2 {[%clk 0:00:07.7]} 42. Be2 {[%clk 0:00:11]} 42...
Rxe2 {[%clk 0:00:07.2]} 43. Rxe7+ {[%clk 0:00:10.2]} 43... Nxe7 {[%clk
0:00:07.1]} 44. Kxe7 {[%clk 0:00:10.5]} 44... Rxe4+ {[%clk 0:00:07.4]} 45. Kxd6
{[%clk 0:00:10.8]} 45... f5 {[%clk 0:00:07.8]} 46. Kd7 {[%clk 0:00:11.1]} 46...
f4 {[%clk 0:00:08.3]} 47. Kc7 {[%clk 0:00:11.6]} 47... f3 {[%clk 0:00:08.7]} 48.
d6 {[%clk 0:00:12.5]} 48... Rd4 {[%clk 0:00:09.2]} 49. d7 {[%clk 0:00:12.6]}
49... f2 {[%clk 0:00:09.7]} 50. d8=Q {[%clk 0:00:12.6]} 50... Rxd8 {[%clk
0:00:09.9]} 51. Kxd8 {[%clk 0:00:13.3]} 51... f1=Q {[%clk 0:00:10.1]} 52. Ke7
{[%clk 0:00:14]} 52... g4 {[%clk 0:00:10.4]} 0-1

[Event "*** Titled Tuesday Blitz"]
[Site "Chess.com"]
[Date "2021.02.16"]
[Round "7"]
[White "MatyChess1"]
[Black "Vamostodorecto"]
[Result "1-0"]
[WhiteElo "2607"]
[BlackElo "2421"]
[TimeControl "180+1"]
[EndTime "11:19:07 PST"]
[Termination "MatyChess1 won on time"]

1. e4 {[%clk 0:03:00.9]} 1... e5 {[%clk 0:02:58.9]} 2. Nf3 {[%clk 0:03:01.1]}
2... Nc6 {[%clk 0:02:58.3]} 3. Bc4 {[%clk 0:03:01.7]} 3... Bc5 {[%clk
0:02:55.9]} 4. c3 {[%clk 0:03:01.9]} 4... d6 {[%clk 0:02:56.1]} 5. d3 {[%clk
0:03:01.8]} 5... h6 {[%clk 0:02:53.7]} 6. Nbd2 {[%clk 0:03:01.6]} 6... Nf6
{[%clk 0:02:52.5]} 7. h3 {[%clk 0:02:59.2]} 7... O-O {[%clk 0:02:52.7]} 8. Nf1
{[%clk 0:02:57.8]} 8... Bb6 {[%clk 0:02:51.6]} 9. Bb3 {[%clk 0:02:55]} 9... Be6
{[%clk 0:02:45.1]} 10. Ng3 {[%clk 0:02:54.3]} 10... d5 {[%clk 0:02:34.5]} 11.
Qe2 {[%clk 0:02:50]} 11... d4 {[%clk 0:02:31.3]} 12. O-O {[%clk 0:02:48.7]}
12... Nh7 {[%clk 0:02:25.5]} 13. Nh2 {[%clk 0:02:42.1]} 13... Qf6 {[%clk
0:02:20.1]} 14. Ng4 {[%clk 0:02:36.1]} 14... Qg6 {[%clk 0:02:17.6]} 15. Qf3
{[%clk 0:02:35.5]} 15... Kh8 {[%clk 0:02:05.2]} 16. Nf5 {[%clk 0:02:33.6]} 16...
Rad8 {[%clk 0:01:59.6]} 17. Re1 {[%clk 0:01:45.2]} 17... Ng5 {[%clk 0:01:56.3]}
18. Qg3 {[%clk 0:01:29]} 18... dxc3 {[%clk 0:01:17.5]} 19. bxc3 {[%clk
0:01:29.9]} 19... Bxf5 {[%clk 0:01:17.3]} 20. exf5 {[%clk 0:01:30]} 20... Qxf5
{[%clk 0:01:17.8]} 21. Bc2 {[%clk 0:01:14.7]} 21... Rfe8 {[%clk 0:01:02.5]} 22.
Qh4 {[%clk 0:01:03]} 22... Kg8 {[%clk 0:00:58.7]} 23. Qg3 {[%clk 0:01:00.5]}
23... Kh8 {[%clk 0:00:55.3]} 24. Bd2 {[%clk 0:00:55.7]} 24... Rd6 {[%clk
0:00:48.2]} 25. Re2 {[%clk 0:00:52]} 25... Rg6 {[%clk 0:00:42.6]} 26. Rae1
{[%clk 0:00:48.1]} 26... h5 {[%clk 0:00:42.1]} 27. Qh4 {[%clk 0:00:45]} 27...
Kg8 {[%clk 0:00:39.7]} 28. Bxg5 {[%clk 0:00:36.1]} 28... Qxg5 {[%clk 0:00:32.7]}
29. Qxg5 {[%clk 0:00:29.7]} 29... Rxg5 {[%clk 0:00:33.6]} 30. Nh2 {[%clk
0:00:28.4]} 30... Rg6 {[%clk 0:00:30.2]} 31. Nf3 {[%clk 0:00:29]} 31... Rge6
{[%clk 0:00:29.1]} 32. Bb3 {[%clk 0:00:18.6]} 32... R6e7 {[%clk 0:00:28.9]} 33.
Bd5 {[%clk 0:00:19.2]} 33... Kf8 {[%clk 0:00:20.1]} 34. Bxc6 {[%clk 0:00:18.6]}
34... bxc6 {[%clk 0:00:21]} 35. Rxe5 {[%clk 0:00:18.9]} 35... f6 {[%clk
0:00:18.5]} 36. Rxe7 {[%clk 0:00:15.5]} 36... Rxe7 {[%clk 0:00:19.4]} 37. Kf1
{[%clk 0:00:15.8]} 37... Rd7 {[%clk 0:00:17.5]} 38. d4 {[%clk 0:00:16.3]} 38...
Rd5 {[%clk 0:00:16.7]} 39. c4 {[%clk 0:00:11.7]} 39... Rf5 {[%clk 0:00:09.4]}
40. c5 {[%clk 0:00:11.6]} 40... Ba5 {[%clk 0:00:08.7]} 41. Rb1 {[%clk
0:00:12.1]} 41... Rd5 {[%clk 0:00:04.7]} 42. Ke2 {[%clk 0:00:12.3]} 42... Bc3
{[%clk 0:00:03.9]} 43. Kd3 {[%clk 0:00:12.6]} 43... Ba5 {[%clk 0:00:02.7]} 44.
Rb7 {[%clk 0:00:13.2]} 1-0

[Event "*** Titled Tuesday Blitz"]
[Site "Chess.com"]
[Date "2021.02.16"]
[Round "7"]
[White "Goryachkina"]
[Black "marianokar"]
[Result "0-1"]
[WhiteElo "2637"]
[BlackElo "2450"]
[TimeControl "180+1"]
[EndTime "11:19:08 PST"]
[Termination "marianokar won by resignation"]

1. e4 {[%clk 0:03:00.3]} 1... c5 {[%clk 0:02:58.5]} 2. Nf3 {[%clk 0:03:00.6]}
2... d6 {[%clk 0:02:59.1]} 3. c3 {[%clk 0:02:57.2]} 3... Nf6 {[%clk 0:02:58.3]}
4. h3 {[%clk 0:02:56.1]} 4... Nbd7 {[%clk 0:02:50.3]} 5. d3 {[%clk 0:02:50.5]}
5... b6 {[%clk 0:02:50.4]} 6. Be2 {[%clk 0:02:50.7]} 6... Bb7 {[%clk 0:02:50.9]}
7. O-O {[%clk 0:02:50.6]} 7... g6 {[%clk 0:02:51.3]} 8. Bg5 {[%clk 0:02:45.3]}
8... Bg7 {[%clk 0:02:51.4]} 9. Nbd2 {[%clk 0:02:45.2]} 9... O-O {[%clk
0:02:51.4]} 10. a4 {[%clk 0:02:44.9]} 10... h6 {[%clk 0:02:50.6]} 11. Bf4 {[%clk
0:02:44.1]} 11... e5 {[%clk 0:02:47.6]} 12. Bh2 {[%clk 0:02:43.3]} 12... a6
{[%clk 0:02:47.1]} 13. Nc4 {[%clk 0:02:40.9]} 13... Qc7 {[%clk 0:02:45.4]} 14.
Qb3 {[%clk 0:02:39.9]} 14... Nh5 {[%clk 0:01:57.4]} 15. Rfe1 {[%clk 0:02:35.8]}
15... Nf4 {[%clk 0:01:56.4]} 16. Ne3 {[%clk 0:02:19.3]} 16... Nxe2+ {[%clk
0:01:35.4]} 17. Rxe2 {[%clk 0:02:20.2]} 17... Nf6 {[%clk 0:01:35.9]} 18. Nd2
{[%clk 0:02:11.5]} 18... Bc6 {[%clk 0:01:36.1]} 19. c4 {[%clk 0:02:10.5]} 19...
Rab8 {[%clk 0:01:27.7]} 20. Qc2 {[%clk 0:01:52.2]} 20... Kh7 {[%clk 0:01:24.6]}
21. Ree1 {[%clk 0:01:50.4]} 21... Nh5 {[%clk 0:01:23.1]} 22. Nd5 {[%clk
0:01:49.7]} 22... Bxd5 {[%clk 0:01:23]} 23. cxd5 {[%clk 0:01:40.8]} 23... a5
{[%clk 0:01:20.8]} 24. Nc4 {[%clk 0:01:35.1]} 24... f5 {[%clk 0:01:19.1]} 25.
Qb3 {[%clk 0:01:33.1]} 25... f4 {[%clk 0:01:05.7]} 26. f3 {[%clk 0:01:24.1]}
26... Bf6 {[%clk 0:01:05.5]} 27. Qb5 {[%clk 0:01:22.3]} 27... Bh4 {[%clk
0:01:03.8]} 28. Re2 {[%clk 0:01:18.3]} 28... Rfc8 {[%clk 0:01:03.2]} 29. Rc1
{[%clk 0:01:02.6]} 29... g5 {[%clk 0:00:55.5]} 30. Rec2 {[%clk 0:01:00.3]} 30...
Qe7 {[%clk 0:00:47.9]} 31. b4 {[%clk 0:00:45.2]} 31... cxb4 {[%clk 0:00:40.1]}
32. Nxb6 {[%clk 0:00:34.8]} 32... Rxc2 {[%clk 0:00:36.3]} 33. Rxc2 {[%clk
0:00:35]} 33... Qa7 {[%clk 0:00:20.6]} 34. Rc6 {[%clk 0:00:33.6]} 34... Be1
{[%clk 0:00:17.8]} 35. Rxd6 {[%clk 0:00:30.3]} 35... Ng7 {[%clk 0:00:17]} 36.
Qc6 {[%clk 0:00:25.2]} 36... Bc3 {[%clk 0:00:14.9]} 37. Rxh6+ {[%clk 0:00:24]}
37... Kg8 {[%clk 0:00:15.5]} 38. Kf1 {[%clk 0:00:21.9]} 38... Bd4 {[%clk
0:00:14.9]} 39. Nd7 {[%clk 0:00:20.3]} 39... b3 {[%clk 0:00:15.8]} 40. Nf6+
{[%clk 0:00:13.2]} 40... Kf7 {[%clk 0:00:14.4]} 41. Rh7 {[%clk 0:00:12.6]} 41...
Qe7 {[%clk 0:00:13.7]} 42. Nh5 {[%clk 0:00:11.5]} 42... b2 {[%clk 0:00:12.1]}
43. Rxg7+ {[%clk 0:00:11.3]} 43... Kf8 {[%clk 0:00:13]} 44. Qc2 {[%clk 0:00:03]}
44... b1=Q+ {[%clk 0:00:12.9]} 45. Qxb1 {[%clk 0:00:03.5]} 45... Rxb1+ {[%clk
0:00:13.5]} 46. Ke2 {[%clk 0:00:04.3]} 46... Rb2+ {[%clk 0:00:14]} 47. Kd1
{[%clk 0:00:04.6]} 47... Qxg7 {[%clk 0:00:14.5]} 48. Nxg7 {[%clk 0:00:04.5]}
48... Kxg7 {[%clk 0:00:15.4]} 0-1